[Event "FIDE Grand Swiss 2023"]
[Site "Villa Marina, Douglas, Isle of Man"]
[Date "2023.11.03"]
[Round "9.19"]
[White "Shankland, Sam"]
[Black "Yakubboev, Nodirbek"]
[Result "0-1"]
[WhiteElo "2698"]
[BlackElo "2616"]
[EventDate "2023.10.25"]
[ECO "D02"]
[PlyCount "72"]
[BlackClock "00:07:26"]
[BlackFideId "14203987"]
[TimeControl "40/100 + 20/50 + 15 + 30s/move"]
[WhiteClock "00:25:07"]
[WhiteFideId "2004887"]

1.d4 {[%clk 01:40:51][%emt 00:00:08]} 1...Nf6 {[%clk 01:40:46][%emt 00:00:14]} 
2.Nf3 {[%clk 01:41:16][%emt 00:00:06]} 2...d5 {[%clk 01:41:11][%emt 00:00:05]} 
3.Bf4 {[%clk 01:41:39][%emt 00:00:06]} 3...c5 {[%clk 01:40:36][%emt 00:01:05]} 
4.e3 {[%clk 01:42:03][%emt 00:00:06]} 4...Nc6 {[%clk 01:40:54][%emt 00:00:13]} 
5.Nbd2 {[%clk 01:42:26][%emt 00:00:06]} 5...e6 {[%clk 01:40:33][%emt 00:00:51]} 
6.c3 {[%clk 01:42:49][%emt 00:00:07]} 6...cxd4 {[%clk 01:40:59][%emt 00:00:05]} 
7.exd4 {[%clk 01:43:15][%emt 00:00:03]} 7...Nh5 {[%clk 01:41:24][%emt 00:00:05]} 
8.Be3 {[%clk 01:43:40][%emt 00:00:04]} 8...Bd6 {[%clk 01:41:48][%emt 00:00:07]} 
9.Bb5 {[%clk 01:44:05][%emt 00:00:05]} 9...Nf4 {[%clk 01:20:35][%emt 00:21:44]} 
10.O-O {[%clk 01:44:26][%emt 00:00:08]} 10...a6 {[%clk 01:15:52][%emt 00:05:13]} 
11.Bxc6+ {[%clk 01:32:57][%emt 00:12:00]} 11...bxc6 {[%clk 01:16:20][%emt
00:00:01]} 12.Ne5 {[%clk 01:33:16][%emt 00:00:10]} 12...Ng6 {[%clk
01:16:41][%emt 00:00:10]} 13.Qh5 {[%clk 01:32:49][%emt 00:00:57]} 13...O-O 
{[%clk 01:14:38][%emt 00:02:32]} 14.b4 {[%clk 01:28:06][%emt 00:05:14]} 
14...Qe8 {[%clk 01:02:03][%emt 00:13:05]} 15.Nb3 {[%clk 01:21:47][%emt
00:06:49]} 15...f6 {[%clk 01:00:01][%emt 00:02:32]} 16.Nxg6 {[%clk
01:22:01][%emt 00:00:16]} 16...hxg6 {[%clk 01:00:30][%emt 00:00:01]} 17.Qd1 
{[%clk 01:21:56][%emt 00:00:36]} 17...e5 {[%clk 00:41:24][%emt 00:19:36]} 
18.Qd2 {[%clk 01:20:40][%emt 00:01:46]} 18...e4 {[%clk 00:39:57][%emt 00:01:57]} 
19.Bf4 {[%clk 01:12:56][%emt 00:08:14]} 19...Be7 {[%clk 00:40:02][%emt
00:00:24]} 20.h4 {[%clk 01:04:04][%emt 00:09:23]} 20...g5 {[%clk 00:27:44][%emt
00:12:48]} 21.hxg5 {[%clk 01:04:29][%emt 00:00:04]} 21...fxg5 {[%clk
00:28:10][%emt 00:00:06]} 22.Bxg5 {[%clk 00:57:35][%emt 00:07:23]} 22...Bd6 
{[%clk 00:28:38][%emt 00:00:02]} 23.f4 {[%clk 00:56:10][%emt 00:01:54]} 
23...Bg4 {[%clk 00:20:45][%emt 00:08:23]} 24.f5 {[%clk 00:47:40][%emt 00:09:00]} 
24...Qh5 {[%clk 00:20:07][%emt 00:01:09]} 25.Bf4 {[%clk 00:48:07][%emt
00:00:03]} 25...Be7 {[%clk 00:20:32][%emt 00:00:05]} 26.Na5 {[%clk
00:45:36][%emt 00:03:01]} 26...Rac8 {[%clk 00:20:49][%emt 00:00:12]} 27.Nb7 
{[%clk 00:41:53][%emt 00:04:15]} 27...Rxf5 {[%clk 00:20:42][%emt 00:00:36]} 
28.Nd6 {[%clk 00:40:10][%emt 00:02:12]} 28...Bxd6 {[%clk 00:19:53][%emt
00:01:20]} 29.Bxd6 {[%clk 00:40:33][%emt 00:00:07]} 29...Bf3 {[%clk
00:19:49][%emt 00:00:33]} 30.Bh2 {[%clk 00:34:04][%emt 00:06:59]} 30...Rg5 
{[%clk 00:10:23][%emt 00:09:57]} 31.Rf2 {[%clk 00:34:29][%emt 00:00:04]} 
31...Re8 {[%clk 00:07:45][%emt 00:03:08]} 32.Re1 {[%clk 00:23:56][%emt
00:11:03]} 32...e3 {[%clk 00:06:40][%emt 00:01:36]} 33.Rxe3 {[%clk
00:24:23][%emt 00:00:03]} 33...Rxe3 {[%clk 00:07:01][%emt 00:00:08]} 34.Qxe3 
{[%clk 00:24:51][%emt 00:00:02]} 34...Bxg2 {[%clk 00:07:22][%emt 00:00:10]} 
35.Qd2 {[%clk 00:24:59][%emt 00:00:23]} 35...Bh3+ {[%clk 00:07:03] [%emt
00:00:48]} 36.Kh1 {[%clk 00:25:27] [%emt 00:00:02]} 36...Bf5 {[%clk 00:07:26]
[%emt 00:00:07]} 0-1

[Event "FIDE Grand Swiss 2023"]
[Site "Villa Marina, Douglas, Isle of Man"]
[Date "2023.11.03"]
[Round "9.20"]
[White "Najer, Evgeniy"]
[Black "Artemiev, Vladislav"]
[Result "1/2-1/2"]
[WhiteElo "2648"]
[BlackElo "2697"]
[EventDate "2023.10.25"]
[ECO "C77"]
[PlyCount "60"]
[BlackClock "00:17:00"]
[BlackFideId "24101605"]
[TimeControl "40/100 + 20/50 + 15 + 30s/move"]
[WhiteClock "00:16:48"]
[WhiteFideId "4118987"]

1.e4 {[%clk 01:40:54][%emt 00:00:04]} 1...e5 {[%clk 01:40:35][%emt 00:00:25]} 
2.Nf3 {[%clk 01:41:16][%emt 00:00:08]} 2...Nc6 {[%clk 01:40:49][%emt 00:00:17]} 
3.Bb5 {[%clk 01:41:40][%emt 00:00:06]} 3...a6 {[%clk 01:40:11][%emt 00:01:08]} 
4.Ba4 {[%clk 01:41:36][%emt 00:00:34]} 4...Nf6 {[%clk 01:40:18][%emt 00:00:23]} 
5.d3 {[%clk 01:41:52][%emt 00:00:14]} 5...b5 {[%clk 01:32:31][%emt 00:08:17]} 
6.Bb3 {[%clk 01:42:01][%emt 00:00:20]} 6...Be7 {[%clk 01:31:21][%emt 00:01:40]} 
7.a4 {[%clk 01:41:12][%emt 00:01:20]} 7...Rb8 {[%clk 01:28:51][%emt 00:02:59]} 
8.axb5 {[%clk 01:40:47][%emt 00:00:56]} 8...axb5 {[%clk 01:29:11][%emt
00:00:10]} 9.O-O {[%clk 01:34:10][%emt 00:07:07]} 9...O-O {[%clk 01:27:28][%emt
00:02:12]} 10.h3 {[%clk 01:26:05][%emt 00:08:34]} 10...d6 {[%clk 01:16:49][%emt
00:11:10]} 11.Bd2 {[%clk 01:21:44][%emt 00:04:51]} 11...h6 {[%clk 01:03:18][%emt
00:14:01]} 12.Nc3 {[%clk 01:21:04][%emt 00:01:10]} 12...Re8 {[%clk
01:03:34][%emt 00:00:15]} 13.Nd5 {[%clk 01:07:17][%emt 00:14:17]} 13...Bf8 
{[%clk 01:00:55][%emt 00:03:08]} 14.Nxf6+ {[%clk 01:00:01][%emt 00:07:46]} 
14...Qxf6 {[%clk 01:00:43][%emt 00:00:42]} 15.Be3 {[%clk 00:48:36][%emt
00:11:55]} 15...Be6 {[%clk 00:40:03][%emt 00:21:11]} 16.c3 {[%clk 00:33:48][%emt
00:15:18]} 16...Ne7 {[%clk 00:35:50][%emt 00:04:43]} 17.d4 {[%clk 00:31:26][%emt
00:02:52]} 17...Bxb3 {[%clk 00:33:10][%emt 00:03:10]} 18.Qxb3 {[%clk
00:31:25][%emt 00:00:31]} 18...exd4 {[%clk 00:33:27][%emt 00:00:13]} 19.cxd4 
{[%clk 00:27:59][%emt 00:03:56]} 19...Ng6 {[%clk 00:33:49][%emt 00:00:08]} 
20.Rfc1 {[%clk 00:27:22][%emt 00:01:07]} 20...c5 {[%clk 00:30:42][%emt
00:03:37]} 21.e5 {[%clk 00:22:00][%emt 00:05:52]} 21...Qf5 {[%clk 00:27:39][%emt
00:03:33]} 22.dxc5 {[%clk 00:20:39][%emt 00:01:51]} 22...dxc5 {[%clk
00:27:58][%emt 00:00:11]} 23.Bxc5 {[%clk 00:20:47][%emt 00:00:23]} 23...Bxc5 
{[%clk 00:18:17][%emt 00:10:11]} 24.Rxc5 {[%clk 00:20:55][%emt 00:00:21]} 
24...Nxe5 {[%clk 00:18:25][%emt 00:00:22]} 25.Nxe5 {[%clk 00:19:02][%emt
00:02:24]} 25...Rxe5 {[%clk 00:18:26][%emt 00:00:29]} 26.Rxe5 {[%clk
00:17:45][%emt 00:01:46]} 26...Qxe5 {[%clk 00:18:50][%emt 00:00:06]} 27.Qc3 
{[%clk 00:16:22][%emt 00:01:53]} 27...Qxc3 {[%clk 00:16:20][%emt 00:03:00]} 
28.bxc3 {[%clk 00:16:47][%emt 00:00:05]} 28...Rc8 {[%clk 00:16:17][%emt
00:00:33]} 29.Ra5 {[%clk 00:16:43][%emt 00:00:35]} 29...Rxc3 {[%clk
00:16:36][%emt 00:00:10]} 30.Rxb5 {[%clk 00:17:07] [%emt 00:00:06]} 30...g6 
{[%clk 00:17:00] [%emt 00:00:07]} 1/2-1/2

[Event "FIDE Grand Swiss 2023"]
[Site "Villa Marina, Douglas, Isle of Man"]
[Date "2023.11.03"]
[Round "9.21"]
[White "Svane, Frederik"]
[Black "Korobov, Anton"]
[Result "0-1"]
[WhiteElo "2626"]
[BlackElo "2658"]
[EventDate "2023.10.25"]
[ECO "C02"]
[PlyCount "94"]
[BlackClock "00:46:38"]
[BlackFideId "14105730"]
[TimeControl "40/100 + 20/50 + 15 + 30s/move"]
[WhiteClock "00:45:18"]
[WhiteFideId "12923044"]

1.e4 {[%clk 01:40:53][%emt 00:00:05]} 1...e6 {[%clk 01:40:53][%emt 00:00:07]} 
2.d4 {[%clk 01:41:17][%emt 00:00:06]} 2...d5 {[%clk 01:41:18][%emt 00:00:06]} 
3.e5 {[%clk 01:41:44][%emt 00:00:03]} 3...c5 {[%clk 01:41:31][%emt 00:00:16]} 
4.c3 {[%clk 01:42:09][%emt 00:00:05]} 4...Nc6 {[%clk 01:41:57][%emt 00:00:04]} 
5.Nf3 {[%clk 01:42:33][%emt 00:00:06]} 5...Bd7 {[%clk 01:42:14][%emt 00:00:12]} 
6.Be2 {[%clk 01:42:46][%emt 00:00:18]} 6...Nge7 {[%clk 01:42:28][%emt 00:00:15]} 
7.Na3 {[%clk 01:42:44][%emt 00:00:32]} 7...cxd4 {[%clk 01:42:21][%emt 00:00:38]} 
8.cxd4 {[%clk 01:43:09][%emt 00:00:05]} 8...Nf5 {[%clk 01:42:33][%emt 00:00:17]} 
9.O-O {[%clk 01:43:06][%emt 00:00:34]} 9...Qb6 {[%clk 01:40:54][%emt 00:02:09]} 
10.Nc2 {[%clk 01:41:57][%emt 00:01:38]} 10...Rc8 {[%clk 01:37:38][%emt
00:03:46]} 11.Kh1 {[%clk 01:27:49][%emt 00:14:39]} 11...Na5 {[%clk
01:37:16][%emt 00:00:51]} 12.Rb1 {[%clk 00:53:59][%emt 00:34:21]} 12...Bb5 
{[%clk 01:36:09][%emt 00:01:36]} 13.Bxb5+ {[%clk 00:53:11][%emt 00:01:19]} 
13...Qxb5 {[%clk 01:36:34][%emt 00:00:05]} 14.Bd2 {[%clk 00:52:20][%emt
00:01:18]} 14...Nc4 {[%clk 01:29:24][%emt 00:07:42]} 15.Bc3 {[%clk
00:51:16][%emt 00:01:35]} 15...h5 {[%clk 01:24:00][%emt 00:05:53]} 16.Nd2 
{[%clk 00:41:13][%emt 00:10:28]} 16...Nxd2 {[%clk 01:03:36][%emt 00:21:00]} 
17.Qxd2 {[%clk 00:41:05][%emt 00:00:38]} 17...Be7 {[%clk 01:02:07][%emt
00:01:59]} 18.a3 {[%clk 00:33:58][%emt 00:07:37]} 18...Rc6 {[%clk 00:56:02][%emt
00:06:35]} 19.Kg1 {[%clk 00:31:29][%emt 00:02:59]} 19...Kd7 {[%clk
00:50:31][%emt 00:06:01]} 20.h3 {[%clk 00:25:10][%emt 00:06:49]} 20...h4 {[%clk
00:45:25][%emt 00:05:35]} 21.Kh2 {[%clk 00:24:28][%emt 00:01:12]} 21...Qb3 
{[%clk 00:43:31][%emt 00:02:26]} 22.g4 {[%clk 00:20:15][%emt 00:04:42]} 
22...hxg3+ {[%clk 00:42:25][%emt 00:01:36]} 23.fxg3 {[%clk 00:20:44][%emt
00:00:02]} 23...f6 {[%clk 00:35:06][%emt 00:07:48]} 24.Rbe1 {[%clk
00:07:41][%emt 00:13:32]} 24...a5 {[%clk 00:32:11][%emt 00:03:26]} 25.Rf3 
{[%clk 00:04:07][%emt 00:04:03]} 25...Nh6 {[%clk 00:31:09][%emt 00:01:33]} 
26.Kg2 {[%clk 00:02:59][%emt 00:01:38]} 26...Nf7 {[%clk 00:30:49][%emt
00:00:49]} 27.h4 {[%clk 00:01:41][%emt 00:01:48]} 27...f5 {[%clk 00:30:29][%emt
00:00:50]} 28.Ne3 {[%clk 00:02:01][%emt 00:00:10]} 28...Qb5 {[%clk
00:24:57][%emt 00:06:02]} 29.Qc2 {[%clk 00:00:35][%emt 00:01:56]} 29...g6 
{[%clk 00:18:32][%emt 00:06:54]} 30.a4 {[%clk 00:01:02][%emt 00:00:04]} 
30...Qa6 {[%clk 00:18:44][%emt 00:00:18]} 31.Qb3 {[%clk 00:00:38][%emt
00:00:54]} 31...Qb6 {[%clk 00:16:11][%emt 00:03:03]} 32.Qa2 {[%clk
00:00:35][%emt 00:00:34]} 32...Rd8 {[%clk 00:09:56][%emt 00:06:44]} 33.Nxd5 
{[%clk 00:00:35][%emt 00:00:31]} 33...exd5 {[%clk 00:10:10][%emt 00:00:16]} 
34.Qxd5+ {[%clk 00:01:04][%emt 00:00:01]} 34...Ke8 {[%clk 00:10:28][%emt
00:00:11]} 35.Qa2 {[%clk 00:01:31][%emt 00:00:03]} 35...Rxd4 {[%clk
00:10:21][%emt 00:00:37]} 36.h5 {[%clk 00:01:14][%emt 00:00:48]} 36...Rg4 
{[%clk 00:06:19][%emt 00:04:31]} 37.Rh1 {[%clk 00:00:37][%emt 00:01:06]} 
37...Rcc4 {[%clk 00:03:37][%emt 00:03:13]} 38.h6 {[%clk 00:00:34][%emt
00:00:34]} 38...Qc6 {[%clk 00:03:24][%emt 00:00:43]} 39.h7 {[%clk 00:00:39][%emt
00:00:25]} 39...Rxg3+ {[%clk 00:03:10][%emt 00:00:43]} 40.Kxg3 {[%clk
00:01:02][%emt 00:00:07]} 40...Rg4+ {[%clk 00:03:36][%emt 00:00:04]} 41.Kh2 
{[%clk 00:48:27][%emt 00:03:05]} 41...Rh4+ {[%clk 00:52:09][%emt 00:01:56]} 
42.Kg2 {[%clk 00:44:41][%emt 00:04:17]} 42...Rxh1 {[%clk 00:52:08][%emt
00:00:31]} 43.Kxh1 {[%clk 00:45:08][%emt 00:00:03]} 43...Qxf3+ {[%clk
00:52:30][%emt 00:00:08]} 44.Kh2 {[%clk 00:45:36][%emt 00:00:02]} 44...Qh5+ 
{[%clk 00:52:06][%emt 00:00:54]} 45.Kg2 {[%clk 00:45:56][%emt 00:00:10]} 
45...Qxh7 {[%clk 00:52:20][%emt 00:00:15]} 46.Qd5 {[%clk 00:46:21][%emt
00:00:06]} 46...Ng5 {[%clk 00:51:15][%emt 00:01:35]} 47.Kg1 {[%clk
00:45:36][%emt 00:01:14]} 47...Nh3+ {[%clk 00:46:38] [%emt 00:05:08]} 0-1

[Event "FIDE Grand Swiss 2023"]
[Site "Villa Marina, Douglas, Isle of Man"]
[Date "2023.11.02"]
[Round "9.22"]
[White "Shirov, Alexei"]
[Black "Yilmaz, Mustafa"]
[Result "1/2-1/2"]
[WhiteElo "2655"]
[BlackElo "2640"]
[EventDate "2023.10.25"]
[ECO "C84"]
[PlyCount "31"]
[BlackFideId "6302718"]
[TimeControl "40/100 + 20/50 + 15 + 30s/move"]
[WhiteFideId "2209390"]

1.e4 {[%clk 01:40:58][%emt 00:53:12]} 1...e5 {[%clk 01:40:56][%emt 00:00:04]} 
2.Nf3 {[%clk 01:41:22][%emt 00:00:06]} 2...Nc6 {[%clk 01:41:23][%emt 00:00:04]} 
3.Bb5 {[%clk 01:41:37][%emt 00:00:15]} 3...a6 {[%clk 01:41:49][%emt 00:00:04]} 
4.Ba4 {[%clk 01:42:02][%emt 00:00:06]} 4...Nf6 {[%clk 01:42:10][%emt 00:00:08]} 
5.O-O {[%clk 01:42:06][%emt 00:00:25]} 5...Be7 {[%clk 01:41:29][%emt 00:01:11]} 
6.d3 {[%clk 01:36:45][%emt 00:05:52]} 6...b5 {[%clk 01:41:53][%emt 00:00:06]} 
7.Bb3 {[%clk 01:37:09][%emt 00:00:06]} 7...d6 {[%clk 01:42:06][%emt 00:00:18]} 
8.a4 {[%clk 01:37:17][%emt 00:00:21]} 8...Bd7 {[%clk 01:40:51][%emt 00:01:44]} 
9.Be3 {[%clk 01:36:44][%emt 00:01:03]} 9...O-O {[%clk 01:39:02][%emt 00:02:20]} 
10.axb5 {[%clk 01:37:06][%emt 00:00:09]} 10...axb5 {[%clk 01:39:26][%emt
00:00:05]} 11.Nc3 {[%clk 01:37:32][%emt 00:00:03]} 11...Rxa1 {[%clk
01:38:40][%emt 00:01:17]} 12.Qxa1 {[%clk 01:37:54] [%emt 00:00:08]} 12...Nb4 
{[%clk 01:39:04] [%emt 00:00:06]} 13.Na2 {[%clk 01:38:18] [%emt 00:00:07]} 
13...Nc6 {[%clk 01:39:25] [%emt 00:00:08]} 14.Nc3 {[%clk 01:38:43] [%emt
00:00:04]} 14...Nb4 {[%clk 01:39:52][%emt 00:00:04]} 15.Na2 {[%clk
01:38:18][%emt 00:00:07]} 15...Nc6 {[%clk 01:39:25][%emt 00:00:08]} 16.Nc3 
{[%clk 01:38:43][%emt 00:00:04]} 1/2-1/2

[Event "FIDE Grand Swiss 2023"]
[Site "Villa Marina, Douglas, Isle of Man"]
[Date "2023.11.03"]
[Round "9.23"]
[White "Sargsyan, Shant"]
[Black "Anton Guijarro, David"]
[Result "0-1"]
[WhiteElo "2631"]
[BlackElo "2653"]
[EventDate "2023.10.25"]
[ECO "D30"]
[PlyCount "140"]
[BlackClock "00:02:00"]
[BlackFideId "2285525"]
[TimeControl "40/100 + 20/50 + 15 + 30s/move"]
[WhiteClock "00:00:20"]
[WhiteFideId "13306766"]

1.d4 {[%clk 01:39:46][%emt 00:01:13]} 1...d5 {[%emt 00:00:40]} 2.c4 {[%clk
01:40:00]} 2...e6 {[%clk 01:41:00][%emt 00:00:08]} 3.Nf3 {[%clk 01:40:19][%emt
00:00:10]} 3...dxc4 {[%clk 01:40:55][%emt 00:00:36]} 4.Qa4+ {[%clk
01:39:28][%emt 00:01:20]} 4...Nd7 {[%clk 01:40:33][%emt 00:00:52]} 5.e4 {[%clk
01:39:46][%emt 00:00:12]} 5...c5 {[%clk 01:39:54][%emt 00:01:09]} 6.Bxc4 {[%clk
01:39:23][%emt 00:00:53]} 6...cxd4 {[%clk 01:39:47][%emt 00:00:38]} 7.O-O 
{[%clk 01:39:46][%emt 00:00:06]} 7...Bc5 {[%clk 01:39:00][%emt 00:01:16]} 8.b4 
{[%clk 01:40:04][%emt 00:00:13]} 8...Bd6 {[%clk 01:38:10][%emt 00:01:20]} 9.Na3 
{[%clk 01:39:58][%emt 00:00:37]} 9...Bb8 {[%clk 00:40:57][%emt 00:57:43]} 
10.Bg5 {[%clk 01:21:36][%emt 00:18:51]} 10...Ne7 {[%clk 00:40:54][%emt
00:00:34]} 11.Nxd4 {[%clk 01:17:23][%emt 00:04:43]} 11...h6 {[%clk
00:40:58][%emt 00:00:26]} 12.Bh4 {[%clk 01:13:09][%emt 00:04:43]} 12...g5 
{[%clk 00:40:46][%emt 00:00:42]} 13.Bg3 {[%clk 01:11:37][%emt 00:02:02]} 
13...Qb6 {[%clk 00:39:04][%emt 00:02:12]} 14.Bb5 {[%clk 00:47:10][%emt
00:24:57]} 14...O-O {[%clk 00:35:04][%emt 00:04:30]} 15.Nf3 {[%clk
00:46:10][%emt 00:01:30]} 15...Bxg3 {[%clk 00:32:12][%emt 00:03:22]} 16.hxg3 
{[%clk 00:46:30][%emt 00:00:10]} 16...Nf6 {[%clk 00:26:36][%emt 00:06:06]} 
17.Nc4 {[%clk 00:41:31][%emt 00:05:29]} 17...Qc7 {[%clk 00:26:43][%emt
00:00:24]} 18.e5 {[%clk 00:41:24][%emt 00:00:37]} 18...Nfd5 {[%emt 00:01:23]} 
19.Rac1 {[%clk 00:41:06]} 19...Ng6 {[%clk 00:25:42][%emt 00:01:25]} 20.Rfe1 
{[%clk 00:29:18][%emt 00:12:19]} 20...Qe7 {[%clk 00:25:45][%emt 00:00:26]} 
21.a3 {[%clk 00:28:26][%emt 00:01:22]} 21...Rd8 {[%clk 00:19:29][%emt 00:06:46]} 
22.Nd6 {[%clk 00:15:58][%emt 00:12:58]} 22...Bd7 {[%clk 00:14:53][%emt
00:05:06]} 23.Bxd7 {[%clk 00:09:31][%emt 00:06:57]} 23...Qxd7 {[%clk
00:14:45][%emt 00:00:38]} 24.Qxd7 {[%clk 00:09:35][%emt 00:00:26]} 24...Rxd7 
{[%clk 00:15:10][%emt 00:00:06]} 25.Ne4 {[%clk 00:10:02][%emt 00:00:02]} 
25...Kg7 {[%clk 00:12:16][%emt 00:03:25]} 26.Nc5 {[%clk 00:09:04][%emt
00:01:28]} 26...Re7 {[%clk 00:10:37][%emt 00:02:09]} 27.Nd4 {[%clk
00:09:19][%emt 00:00:14]} 27...a5 {[%clk 00:08:32][%emt 00:02:35]} 28.b5 {[%clk
00:09:24][%emt 00:00:26]} 28...a4 {[%clk 00:08:06][%emt 00:00:55]} 29.Re4 
{[%clk 00:05:00][%emt 00:04:54]} 29...Kh7 {[%clk 00:07:57][%emt 00:00:39]} 
30.Ne2 {[%clk 00:04:55][%emt 00:00:34]} 30...Nb6 {[%clk 00:07:31][%emt
00:00:57]} 31.Rc3 {[%clk 00:04:23][%emt 00:01:03]} 31...Ra5 {[%clk
00:06:54][%emt 00:01:06]} 32.f4 {[%clk 00:02:29][%emt 00:02:24]} 32...Rxb5 
{[%clk 00:05:04][%emt 00:02:20]} 33.Nxa4 {[%clk 00:02:53][%emt 00:00:06]} 
33...Nd5 {[%clk 00:04:48][%emt 00:00:46]} 34.Rc8 {[%clk 00:02:22][%emt
00:01:01]} 34...Rb3 {[%clk 00:02:45][%emt 00:02:34]} 35.Nac3 {[%clk
00:02:11][%emt 00:00:41]} 35...Nxc3 {[%clk 00:02:32][%emt 00:00:42]} 36.Rxc3 
{[%clk 00:02:00][%emt 00:00:41]} 36...Rb2 {[%clk 00:02:54][%emt 00:00:08]} 
37.Nd4 {[%clk 00:00:42][%emt 00:01:48]} 37...Rd7 {[%clk 00:02:53][%emt
00:00:31]} 38.fxg5 {[%clk 00:00:32][%emt 00:00:40]} 38...hxg5 {[%clk
00:02:39][%emt 00:00:45]} 39.Nf3 {[%clk 00:00:40][%emt 00:00:22]} 39...Kh6 
{[%clk 00:02:42][%emt 00:00:26]} 40.Kh2 {[%clk 00:00:32][%emt 00:00:38]} 
40...Rb1 {[%clk 00:01:39][%emt 00:01:33]} 41.g4 {[%clk 00:43:27][%emt 00:07:35]} 
41...Nf4 {[%clk 00:38:21][%emt 00:13:46]} 42.Rb4 {[%clk 00:37:17][%emt
00:06:41]} 42...Rxb4 {[%clk 00:38:00][%emt 00:00:52]} 43.axb4 {[%clk
00:37:38][%emt 00:00:09]} 43...Nd5 {[%clk 00:38:18][%emt 00:00:11]} 44.Rc8 
{[%clk 00:25:29][%emt 00:12:39]} 44...Nxb4 {[%clk 00:37:15][%emt 00:01:34]} 
45.Rh8+ {[%clk 00:24:14][%emt 00:01:45]} 45...Kg7 {[%clk 00:36:47][%emt
00:00:57]} 46.Rh5 {[%clk 00:24:35][%emt 00:00:09]} 46...Nd3 {[%clk
00:32:26][%emt 00:04:51]} 47.Rxg5+ {[%clk 00:23:28][%emt 00:01:37]} 47...Kf8 
{[%clk 00:32:39][%emt 00:00:17]} 48.Rh5 {[%clk 00:22:36][%emt 00:01:21]} 
48...Rd5 {[%clk 00:32:15][%emt 00:00:54]} 49.Rh8+ {[%clk 00:08:51][%emt
00:14:16]} 49...Kg7 {[%clk 00:32:26][%emt 00:00:19]} 50.Rb8 {[%clk
00:09:16][%emt 00:00:06]} 50...b5 {[%clk 00:32:38][%emt 00:00:18]} 51.Kg3 
{[%clk 00:08:58][%emt 00:00:47]} 51...Nxe5 {[%clk 00:32:26][%emt 00:00:41]} 
52.Ne1 {[%clk 00:05:13][%emt 00:04:16]} 52...Rc5 {[%clk 00:28:24][%emt
00:04:33]} 53.Nf3 {[%clk 00:04:37][%emt 00:01:05]} 53...Nd3 {[%clk
00:26:29][%emt 00:02:24]} 54.Nd4 {[%clk 00:00:46][%emt 00:04:22]} 54...b4 
{[%clk 00:26:22][%emt 00:00:37]} 55.Kf3 {[%clk 00:00:48][%emt 00:00:28]} 
55...Rc4 {[%clk 00:19:08][%emt 00:07:44]} 56.Ke3 {[%clk 00:01:05][%emt
00:00:13]} 56...Nc5 {[%clk 00:10:21][%emt 00:09:17]} 57.Rb5 {[%clk
00:00:36][%emt 00:00:59]} 57...Rc3+ {[%clk 00:09:41][%emt 00:01:09]} 58.Kf4 
{[%clk 00:00:31][%emt 00:00:35]} 58...b3 {[%clk 00:07:49][%emt 00:02:23]} 
59.Ne2 {[%clk 00:00:35][%emt 00:00:27]} 59...Rc2 {[%clk 00:06:28][%emt
00:01:50]} 60.Nd4 {[%clk 00:00:31][%emt 00:00:34]} 60...Rc4 {[%clk
00:06:17][%emt 00:00:40]} 61.Ke3 {[%clk 00:14:02][%emt 00:01:59]} 61...Rc3+ 
{[%clk 00:20:10][%emt 00:01:38]} 62.Ke2 {[%clk 00:14:16][%emt 00:00:16]} 
62...f6 {[%clk 00:10:42][%emt 00:09:58]} 63.Nf3 {[%clk 00:07:37][%emt 00:07:09]} 
63...Kg6 {[%clk 00:09:05][%emt 00:02:07]} 64.Nd4 {[%clk 00:05:31][%emt
00:02:36]} 64...Kf7 {[%clk 00:06:27][%emt 00:03:08]} 65.Nc6 {[%clk
00:01:37][%emt 00:04:25]} 65...Na4 {[%clk 00:04:14][%emt 00:02:42]} 66.Rb7+ 
{[%clk 00:01:28][%emt 00:00:39]} 66...Kg6 {[%clk 00:01:56][%emt 00:02:48]} 
67.Nd4 {[%clk 00:00:33][%emt 00:01:25]} 67...b2 {[%clk 00:02:11][%emt 00:00:15]} 
68.Nxe6 {[%clk 00:00:54][%emt 00:00:09]} 68...Rc1 {[%clk 00:01:56][%emt
00:00:44]} 69.Nf8+ {[%clk 00:00:31][%emt 00:00:53]} 69...Kg5 {[%clk
00:01:58][%emt 00:00:29]} 70.Rg7+ {[%clk 00:00:33][%emt 00:00:27]} 70...Kf4 
{[%clk 00:02:00] [%emt 00:00:29]} 0-1